fUSD/lending_fUSD_20250305
["ID","MTS","AMOUNT","RATE_DAILY","PERIOD"]
[355424197,1741133253239,-359.18845889,0.0002,90]
[355424198,1741133253274,-509.18118963,0.00021917,120]
[355424199,1741133253303,-500.0,0.00021999,120]
[355424200,1741133253337,-2517.81792245,0.00022,120]
[355424226,1741133432134,-447.45696331,0.00010691,2]
[355424227,1741133432144,-150.0,0.00010734,2]
[355424228,1741133432154,-150.0,0.00010987,2]
[355424229,1741133432164,-550.0,0.00011,2]
[355424230,1741133432174,-194.64,0.00011129,2]
[355424231,1741133432185,-154.65,0.00011168,2]
[355424232,1741133432195,-554.12,0.00011208,2]
[355424233,1741133432205,-150.98,0.00011371,2]
[355424234,1741133432215,-1000.0,0.00011483,2]
[355424235,1741133432224,-1500.0,0.00011485,2]
[355424236,1741133432233,-150.98,0.00011553,2]
[355424237,1741133432242,-150.98,0.00011735,2]
[355424238,1741133432252,-150.0,0.0001176,2]
[355424239,1741133432262,-505.72,0.00011902,2]
[355424240,1741133432273,-150.98,0.00011917,2]
[355424241,1741133432282,-150.0,0.00012062,2]
[355424242,1741133432292,-150.98,0.00012099,2]
[355424243,1741133432302,-150.0,0.00012152,2]
[355424244,1741133432312,-150.0,0.00012152,2]
[355424245,1741133432321,-150.0,0.00012252,2]
[355424246,1741133432333,-150.98,0.00012281,2]
[355424247,1741133432344,-2500.0,0.00012295,2]
[355424248,1741133432355,-4103.4277,0.00012295,2]
[355424249,1741133432365,-1403.05133,0.0001237,2]
[355424250,1741133432376,-268.01161031,0.00012384,2]
[355424251,1741133432386,-10867.24584402,0.00012393,2]
[355424252,1741133432397,-4235.94,0.00012393,2]
[355424253,1741133432408,-150.0,0.00012393,2]
[355424254,1741133432417,-500.0,0.00012393,2]
[355424255,1741133432426,-3834.67,0.00012393,2]
[355424256,1741133432436,-500.0,0.00012393,2]
[355424257,1741133432446,-1562.92,0.00012393,2]
[355424258,1741133432455,-6260.09,0.00012393,2]
[355424259,1741133432465,-2859.44,0.00012393,2]
[355424260,1741133432475,-6437.96,0.00012393,2]
[355424262,1741133432484,-2622.54,0.00012393,2]
[355424265,1741133432496,-1605.4,0.00012393,2]
[355424267,1741133432506,-1826.16,0.00012393,2]
[355424268,1741133432516,-1841.5,0.00012393,2]
[355424271,1741133432526,-500.0,0.00012394,2]
[355424272,1741133432535,-500.0,0.00012394,2]
[355424274,1741133432545,-756.85,0.00012394,2]
[355424277,1741133432555,-500.0,0.00012394,2]
[355424278,1741133432564,-1239.51,0.00012394,2]
[355424280,1741133432574,-507.0615534,0.00012394,2]
[355424282,1741133432586,-1547.44,0.00012394,2]
[355424285,1741133432597,-920.46,0.00012394,2]
[355424287,1741133432608,-500.0,0.00012394,2]
[355424289,1741133432618,-968.87,0.00012394,2]
[355424291,1741133432628,-500.0,0.00012394,2]
[355424293,1741133432638,-500.0,0.00012394,2]
[355424294,1741133432647,-2247.24,0.00012394,2]
[355424297,1741133432656,-601.23,0.00012394,2]
[355424298,1741133432666,-1497.65,0.00012394,2]
[355424300,1741133432676,-500.0,0.00012394,2]
[355424302,1741133432686,-2145.67,0.00012394,2]
[355424304,1741133432695,-500.0,0.00012394,2]
[355424306,1741133432705,-500.0,0.00012394,2]
[355424309,1741133432716,-500.0,0.00012394,2]
[355424311,1741133432725,-1150.11,0.00012394,2]
[355424313,1741133432734,-992.93,0.00012394,2]
[355424314,1741133432744,-500.0,0.00012394,2]
[355424316,1741133432753,-1235.02,0.00012394,2]
[355424318,1741133432762,-500.0,0.00012394,2]
[355424321,1741133432773,-500.0,0.00012394,2]
[355424323,1741133432782,-500.0,0.00012394,2]
[355424325,1741133432792,-1089.3,0.00012394,2]
[355424327,1741133432801,-1657.69,0.00012394,2]
[355424329,1741133432811,-1104.98,0.00012394,2]
[355424331,1741133432821,-500.0,0.00012394,2]
[355424333,1741133432830,-500.0,0.00012394,2]
[355424334,1741133432840,-1394.96,0.00012394,2]
[355424337,1741133432849,-500.0,0.00012394,2]
[355424339,1741133432859,-2104.43,0.00012394,2]
[355424340,1741133432869,-500.0,0.00012394,2]
[355424343,1741133432878,-500.0,0.00012394,2]
[355424345,1741133432888,-500.0,0.00012394,2]
[355424347,1741133432898,-500.0,0.00012394,2]
[355424348,1741133432907,-500.0,0.00012394,2]
[355424350,1741133432917,-500.0,0.00012394,2]
[355424353,1741133432927,-967.96,0.00012394,2]
[355424354,1741133432937,-500.0,0.00012394,2]
[355424356,1741133432946,-500.0,0.00012394,2]
[355424359,1741133432957,-1178.2,0.00012394,2]
[355424360,1741133432966,-500.0,0.00012394,2]
[355424363,1741133432976,-500.0,0.00012394,2]
[355424364,1741133432985,-500.0,0.00012394,2]
[355424367,1741133432995,-500.0,0.00012394,2]
[355424369,1741133433005,-500.0,0.00012394,2]
[355424371,1741133433015,-2200.63,0.00012394,2]
[355424373,1741133433025,-500.0,0.00012394,2]
[355424375,1741133433034,-500.0,0.00012394,2]
[355424376,1741133433045,-1483.6,0.00012394,2]
[355424378,1741133433056,-500.0,0.00012394,2]
[355424380,1741133433066,-731.24,0.00012394,2]
[355424382,1741133433077,-2508.38,0.00012394,2]
[355424384,1741133433086,-1139.14,0.00012394,2]
[355424386,1741133433097,-500.0,0.00012394,2]
[355424388,1741133433107,-500.0,0.00012394,2]
[355424391,1741133433118,-3530.76,0.00012394,2]
[355424393,1741133433128,-528.26,0.00012394,2]
[355424395,1741133433139,-500.0,0.00012394,2]
[355424397,1741133433148,-500.0,0.00012394,2]
[355424399,1741133433158,-2149.94,0.00012394,2]
[355424400,1741133433167,-500.0,0.00012394,2]
[355424402,1741133433177,-332.35190694,0.00012394,2]
[355424404,1741133433187,-734.37,0.00012394,2]
[355424407,1741133433198,-500.0,0.00012394,2]
[355424409,1741133433209,-1502.62,0.00012394,2]
[355424411,1741133433218,-564.51,0.00012394,2]
[355424412,1741133433228,-500.0,0.00012394,2]
[355424415,1741133433238,-995.03,0.00012394,2]
[355424417,1741133433247,-14284.89,0.00012394,2]
[355424418,1741133433262,-2755.93,0.00012394,2]
[355424421,1741133433276,-500.0,0.00012394,2]
[355424423,1741133433285,-170.061403,0.00012394,2]
[355424425,1741133433295,-500.0,0.00012394,2]
[355424427,1741133433307,-502.47315157,0.00012394,2]
[355424428,1741133433317,-3561.15,0.00012394,2]
[355424430,1741133433327,-500.0,0.00012394,2]
[355424432,1741133433337,-1002.97,0.00012394,2]
[355424434,1741133433350,-3204.82,0.00012394,2]
[355424436,1741133433359,-500.0,0.00012394,2]
[355424438,1741133433369,-550.82295017,0.00012394,2]
[355424440,1741133433379,-1488.91,0.00012394,2]
[355424442,1741133433389,-1423.14,0.00012394,2]
[355424444,1741133433399,-1652.75,0.00012394,2]
[355424446,1741133433409,-500.0,0.00012394,2]
[355424448,1741133433418,-1172.05,0.00012394,2]
[355424450,1741133433429,-500.0,0.00012394,2]
[355424453,1741133433439,-4382.82,0.00012394,2]
[355424454,1741133433448,-522.90644245,0.00012394,2]
[355424457,1741133433458,-504.99144694,0.00012394,2]
[355424459,1741133433468,-1941.24,0.00012394,2]
[355424461,1741133433478,-637.77,0.00012394,2]
[355424462,1741133433488,-8905.05,0.00012394,2]
[355424464,1741133433497,-500.0,0.00012394,2]
[355424466,1741133433507,-3525.82,0.00012394,2]
[355424468,1741133433517,-3360.32,0.00012394,2]
[355424470,1741133433527,-500.0,0.00012394,2]
[355424472,1741133433537,-500.0,0.00012394,2]
[355424474,1741133433547,-3046.18,0.00012394,2]
[355424476,1741133433556,-2459.51,0.00012394,2]
[355424479,1741133433566,-2875.44,0.00012394,2]
[355424481,1741133433575,-500.0,0.00012394,2]
[355424482,1741133433585,-2230.15,0.00012394,2]
[355424485,1741133433595,-500.0,0.00012394,2]
[355424487,1741133433606,-4806.49,0.00012394,2]
[355424489,1741133433616,-500.0,0.00012394,2]
[355424490,1741133433629,-500.0,0.00012394,2]
[355424492,1741133433639,-500.0,0.00012394,2]
[355424495,1741133433649,-500.0,0.00012394,2]
[355424496,1741133433658,-5098.63,0.00012394,2]
[355424499,1741133433669,-500.0,0.00012394,2]
[355424500,1741133433679,-5167.44,0.00012394,2]
[355424501,1741133433688,-4815.64,0.00012394,2]
[355424502,1741133433698,-4065.79,0.00012394,2]
[355424503,1741133433707,-500.0,0.00012394,2]
[355424504,1741133433716,-1608.76,0.00012394,2]
[355424505,1741133433725,-2184.25,0.00012394,2]
[355424506,1741133433734,-500.0,0.00012394,2]
[355424507,1741133433743,-3590.69,0.00012394,2]
[355424508,1741133433752,-500.0,0.00012394,2]
[355424509,1741133433761,-12630.39,0.00012394,2]
[355424510,1741133433770,-2896.4,0.00012394,2]
[355424511,1741133433779,-397.45679296,0.00012394,2]
[355424512,1741133433793,-1323.98320704,0.00012394,2]
[355424513,1741133433803,-8077.73,0.00012394,2]
[355424514,1741133433813,-5228.43840561,0.00012394,2]
[355424516,1741133433856,-398.89253109,0.00012394,2]
[355424517,1741133433868,-2643.39459498,0.00012394,2]
[355424518,1741133433881,-810.01068709,0.00012394,2]
[355424519,1741133433909,-616.42378123,0.00012394,2]
[355424520,1741133433919,-911.6,0.00012394,2]
[355424521,1741133433928,-516.40402773,0.00012394,2]
[355424522,1741133433940,-5120.18597227,0.00012394,2]
[355424523,1741133433952,-4946.46,0.00012394,2]
[355424524,1741133433961,-3826.79,0.00012394,2]
[355424525,1741133433971,-500.0,0.00012394,2]
[355424526,1741133433980,-8804.06,0.00012394,2]
[355424527,1741133433990,-525.42106772,0.00012394,2]
[355424528,1741133434011,-500.0,0.00012394,2]
[355424529,1741133434023,-2203.01893228,0.00012394,2]
[355424530,1741133434033,-1780.02293429,0.00012394,2]
[355424940,1741133438359,-9362.06706571,0.00012394,2]
[355424942,1741133438369,-2228.98057643,0.00012394,2]
[355425406,1741133443275,-1005.32904095,0.00012393,2]
[355425408,1741133443287,-182.53095905,0.00012393,2]
[355425410,1741133443296,-257.65401285,0.00012393,2]
[355425412,1741133443396,-2813.62598715,0.00012393,2]
[355425413,1741133443405,-96.61942357,0.00012394,2]
[355425414,1741133443415,-503.45517319,0.00012394,2]
[355425415,1741133443424,-500.0,0.00012394,2]
[355425416,1741133443434,-5546.31,0.00012394,2]
[355425417,1741133443443,-1655.55,0.00012394,2]
[355425418,1741133443452,-1146.08,0.00012394,2]
[355425419,1741133443461,-713.85,0.00012394,2]
[355425420,1741133443470,-5437.0,0.00012394,2]
[355425421,1741133443480,-5946.91,0.00012394,2]
[355425422,1741133443489,-1904.86,0.00012394,2]
[355425423,1741133443498,-2735.73939809,0.00012394,2]
[355425425,1741133443532,-1175.58060191,0.00012394,2]
[355425426,1741133443542,-1410.31,0.00012394,2]
[355425428,1741133443552,-3367.46303491,0.00012394,2]
[355425554,1741133444827,-16883.57696509,0.00012394,2]
[355425556,1741133444836,-1100.26,0.00012394,2]
[355425558,1741133444845,-500.0,0.00012394,2]
[355425560,1741133444856,-500.0,0.00012394,2]
[355425562,1741133444866,-13689.69,0.00012394,2]
[355425564,1741133444875,-500.0,0.00012394,2]
[355425566,1741133444887,-500.0,0.00012394,2]
[355425568,1741133444896,-1512.85,0.00012394,2]
[355425570,1741133444905,-500.0,0.00012394,2]
[355425572,1741133444915,-500.0,0.00012394,2]
[355425574,1741133444924,-88996.83159156,0.00012395,2]
[355425576,1741133444935,-933.975,0.00012395,2]
[355425578,1741133444946,-981.83,0.00012395,2]
[355425580,1741133444958,-1510.02080844,0.00012395,2]
[355425585,1741133444994,-8516.44760459,0.00012395,2]
[355425730,1741133446703,-500.0,0.00012394,2]
[355425732,1741133446713,-936.74816541,0.00012395,2]
[355425734,1741133446725,-1111.0,0.00012395,2]
[355425747,1741133446838,-3034.87939155,0.00012395,2]
[355425749,1741133446849,-612.34305062,0.00012395,2]
[355425751,1741133446861,-451.23409272,0.00012395,2]
[355428156,1741133762941,455.14,9.546e-05,2]
[355428157,1741134054420,150.0,8.771e-05,2]
[355428176,1741134632371,-200.0,0.000113,2]
[355428177,1741134632381,-197.8716982,0.000113,2]
[355428178,1741134632606,-2.1283018,0.000113,2]
[355428179,1741134632616,-165.48,0.00011363,2]
[355428180,1741134632625,-150.0,0.0001139,2]
[355428181,1741134632635,-164.44,0.00011418,2]
[355428182,1741134632645,-80.4516982,0.00011447,2]
[355428183,1741134632661,-532.329997,0.00011447,2]
[355428192,1741134638265,-387.2183048,0.00011447,2]
[355428193,1741134638274,-218.16,0.00011464,2]
[355428194,1741134638284,-150.0,0.000115,2]
[355428195,1741134638294,-455.14,0.0001181,2]
[355428196,1741134638304,-164.44,0.00011875,2]
[355428197,1741134638313,-150.0,0.0001192,2]
[355428198,1741134638322,-150.0,0.00011922,2]
[355428199,1741134638332,-1332.38,0.00012087,2]
[355428200,1741134638341,-4770.1,0.00012087,2]
[355428201,1741134638350,-1094.89,0.00012174,2]
[355428202,1741134638359,-8775.71,0.00012174,2]
[355428203,1741134638369,-150.0,0.00012174,2]
[355428204,1741134638378,-1225.09596,0.0001227,2]
[355428205,1741134638389,-150.0,0.00012292,2]
[355428206,1741134638399,-2105.0427,0.00012293,2]
[355428207,1741134638408,-6889.0289,0.00012293,2]
[355428208,1741134638416,-3247.9369227,0.00012293,2]
[355428209,1741134638426,-1544.6129,0.00012294,2]
[355428210,1741134638435,-500.0,0.00012294,2]
[355428211,1741134638445,-1000.0,0.00012294,2]
[355428212,1741134638455,-169.16239588,0.00012294,2]
[355428213,1741134638464,-1761.143,0.00012296,2]
[355428214,1741134638473,-200.0,0.000123,2]
[355428215,1741134638482,-200.0,0.000123,2]
[355428216,1741134638492,-200.0,0.000123,2]
[355428217,1741134638501,-200.0,0.000123,3]
[355428218,1741134638511,-190.0,0.000123,3]
[355428219,1741134638520,-190.0,0.000123,2]
[355428220,1741134638529,-171.65,0.000123,2]
[355428221,1741134638538,-3247.93692264,0.00012323,2]
[355428223,1741134638547,-164.44,0.00012332,2]
[355428225,1741134638557,-3247.93692264,0.00012354,2]
[355428226,1741134638566,-172.15618206,0.0001237,2]
[355428227,1741134638576,-1460.5531783,0.0001237,2]
[355428228,1741134638585,-160.17782112,0.00012373,2]
[355428229,1741134638595,-3247.93692264,0.00012384,2]
[355428231,1741134638604,-946.41,0.00012391,2]
[355428233,1741134638615,-2513.27,0.00012391,2]
[355428235,1741134638624,-500.0,0.00012391,2]
[355428236,1741134638633,-457.002,0.00012392,2]
[355428237,1741134638644,-1739.58,0.00012392,2]
[355428238,1741134638656,-500.0,0.00012392,2]
[355428239,1741134638666,-500.0,0.00012392,2]
[355428240,1741134638676,-500.0,0.00012392,2]
[355428241,1741134638687,-500.0,0.00012392,2]
[355428242,1741134638696,-500.0,0.00012392,2]
[355428243,1741134638706,-500.0,0.00012392,2]
[355428244,1741134638715,-1002.84,0.00012392,2]
[355428245,1741134638725,-1756.57,0.00012392,2]
[355428246,1741134638735,-500.0,0.00012392,2]
[355428247,1741134638745,-938.91,0.00012392,2]
[355428248,1741134638755,-500.0,0.00012392,2]
[355428249,1741134638764,-500.0,0.00012392,2]
[355428250,1741134638773,-500.0,0.00012392,2]
[355428251,1741134638783,-1151.65,0.00012392,2]
[355428252,1741134638792,-819.95,0.00012392,2]
[355428253,1741134638801,-2289.6,0.00012392,2]
[355428254,1741134638811,-953.29,0.00012392,2]
[355428255,1741134638821,-882.52,0.00012392,2]
[355428256,1741134638831,-500.0,0.00012392,2]
[355428257,1741134638841,-1125.68,0.00012392,2]
[355428258,1741134638850,-1095.43,0.00012392,2]
[355428259,1741134638859,-1170.51,0.00012392,2]
[355428260,1741134638869,-180.62497191,0.00012392,2]
[355428261,1741134638878,-281.0188146,0.00012392,2]
[355428262,1741134638888,-500.0,0.00012392,2]
[355428263,1741134638897,-500.0,0.00012392,2]
[355428264,1741134638909,-500.0,0.00012392,2]
[355428265,1741134638918,-500.0,0.00012392,2]
[355428266,1741134638928,-500.0,0.00012392,2]
[355428267,1741134638937,-311.44573524,0.00012392,2]
[355428268,1741134638947,-500.0,0.00012392,2]
[355428269,1741134638957,-500.0,0.00012392,2]
[355428270,1741134638966,-668.28695559,0.00012392,2]
[355428271,1741134639719,-439.2082749,0.00012392,2]
[355428272,1741134639731,-1835.81476951,0.00012392,2]
[355428273,1741134639741,-1705.25727149,0.00012392,2]
[355428274,1741134639753,-879.03556353,0.00012392,2]
[355428277,1741134640418,-500.0,0.00012391,2]
[355428278,1741134640427,-3347.01042802,0.00012392,2]
[355428279,1741134640707,-722.81483102,0.00012392,2]
[355428280,1741134640719,-1577.18516898,0.00012392,2]
[355428281,1741134640835,-4887.97673696,0.00012392,2]
[355428282,1741134640845,-1983.65,0.00012392,2]
[355428283,1741134640854,-1650.23,0.00012392,2]
[355428284,1741134640864,-972.86,0.00012392,2]
[355428285,1741134640873,-3412.77,0.00012392,2]
[355428286,1741134640883,-151.912191,0.00012392,2]
[355428287,1741134640893,-1426.87,0.00012392,2]
[355428288,1741134640903,-3378.91,0.00012392,2]
[355428289,1741134640912,-3170.82,0.00012392,2]
[355428290,1741134640922,-8534.0,0.00012392,2]
[355428291,1741134640931,-1837.08,0.00012392,2]
[355428292,1741134640940,-536.39893692,0.00012392,2]
[355428293,1741134640950,-1727.33,0.00012392,2]
[355428294,1741134640960,-500.0,0.00012392,2]
[355428295,1741134640970,-2469.85,0.00012392,2]
[355428296,1741134640979,-3268.88,0.00012392,2]
[355428297,1741134640988,-500.0,0.00012392,2]
[355428298,1741134640998,-3896.38,0.00012392,2]
[355428299,1741134641007,-695.91,0.00012392,2]
[355428300,1741134641016,-2992.77,0.00012392,2]
[355428301,1741134641026,-4998.24,0.00012392,2]
[355428302,1741134641035,-12104.13,0.00012392,2]
[355428303,1741134641045,-1784.25,0.00012392,2]
[355428304,1741134641054,-500.0,0.00012392,2]
[355428305,1741134641063,-4614.99,0.00012392,2]
[355428306,1741134641072,-500.0,0.00012392,2]
[355428307,1741134641082,-7668.0,0.00012392,2]
[355428308,1741134641091,-3441.08,0.00012392,2]
[355428309,1741134641100,-3667.34,0.00012392,2]
[355428310,1741134641110,-1049.57,0.00012392,2]
[355428311,1741134641120,-7741.15,0.00012392,2]
[355428312,1741134641129,-1708.82,0.00012392,2]
[355428313,1741134641137,-5401.73,0.00012392,2]
[355428314,1741134641146,-2843.48,0.00012392,2]
[355428315,1741134641156,-2228.7,0.00012392,2]
[355428316,1741134641164,-530.56,0.00012392,2]
[355428317,1741134641173,-8437.23,0.00012392,2]
[355428318,1741134641182,-3710.81,0.00012392,2]
[355428319,1741134641190,-9300.1,0.00012392,2]
[355428320,1741134641199,-10677.84,0.00012392,2]
[355428321,1741134641208,-2225.86,0.00012392,2]
[355428322,1741134641217,-500.0,0.00012392,2]
[355428323,1741134641226,-4740.36,0.00012392,2]
[355428324,1741134641234,-5699.13,0.00012392,2]
[355428325,1741134641243,-500.0,0.00012392,2]
[355428326,1741134641252,-1497.8,0.00012392,2]
[355428327,1741134641261,-3143.94,0.00012392,2]
[355428328,1741134641270,-5999.25,0.00012392,2]
[355428329,1741134641279,-5210.46,0.00012392,2]
[355428330,1741134641287,-19407.25,0.00012392,2]
[355428331,1741134641296,-5315.21,0.00012392,2]
[355428332,1741134641304,-1538.51,0.00012392,2]
[355428333,1741134641314,-500.0,0.00012392,2]
[355428334,1741134641323,-2740.29,0.00012392,2]
[355428335,1741134641332,-516.67612942,0.00012392,2]
[355428336,1741134641342,-401.54559384,0.00012392,2]
[355428337,1741134641351,-2825.66,0.00012392,2]
[355428338,1741134641361,-500.0,0.00012392,2]
[355428339,1741134641370,-4475.54,0.00012392,2]
[355428340,1741134641379,-500.0,0.00012392,2]
[355428341,1741134641388,-6169.71,0.00012392,2]
[355428342,1741134641397,-2650.11,0.00012392,2]
[355428343,1741134641408,-500.0,0.00012392,2]
[355428344,1741134641418,-3748.35,0.00012392,2]
[355428345,1741134641427,-1054.42,0.00012392,2]
[355428346,1741134641435,-500.0,0.00012392,2]
[355428347,1741134641445,-725.31,0.00012392,2]
[355428348,1741134641454,-1764.77,0.00012392,2]
[355428349,1741134641464,-500.0,0.00012392,2]
[355428350,1741134641473,-540.99,0.00012392,2]
[355428351,1741134641482,-153187.67409449,0.00012393,2]
[355428352,1741134641492,-1203.65,0.00012393,2]
[355428353,1741134641501,-500.0,0.00012393,2]
[355428354,1741134641510,-516.80783944,0.00012393,2]
[355428355,1741134641520,-504.86520604,0.00012393,2]
[355428356,1741134641530,-500.0,0.00012393,2]
[355428357,1741134641539,-1019.9,0.00012393,2]
[355428358,1741134641548,-500.0,0.00012393,2]
[355428359,1741134641557,-500.0,0.00012393,2]
[355428360,1741134641566,-500.0,0.00012393,2]
[355428361,1741134641575,-500.0,0.00012393,2]
[355428362,1741134641584,-882.11,0.00012393,2]
[355428363,1741134641593,-500.0,0.00012393,2]
[355428364,1741134641603,-500.0,0.00012393,2]
[355428365,1741134641611,-500.0,0.00012393,2]
[355428366,1741134641621,-608.48958699,0.00012393,2]
[355428367,1741134641631,-1071.87,0.00012393,2]
[355428368,1741134641640,-506.05458415,0.00012393,2]
[355428369,1741134641650,-500.0,0.00012393,2]
[355428370,1741134641662,-500.0,0.00012393,2]
[355428371,1741134641672,-576.18,0.00012393,2]
[355428372,1741134641681,-500.0,0.00012393,2]
[355428373,1741134641693,-500.0,0.00012393,2]
[355428374,1741134641702,-500.0,0.00012393,2]
[355428375,1741134641711,-500.0,0.00012393,2]
[355428376,1741134641721,-500.0,0.00012393,2]
[355428377,1741134641731,-500.0,0.00012393,2]
[355428378,1741134641740,-500.0,0.00012393,2]
[355428379,1741134641750,-517.29006765,0.00012393,2]
[355428380,1741134641759,-500.0,0.00012393,2]
[355428381,1741134641769,-500.0,0.00012393,2]
[355428382,1741134641778,-500.0,0.00012393,2]
[355428383,1741134641793,-502.45049126,0.00012393,2]
[355428384,1741134641810,-500.0,0.00012393,2]
[355428385,1741134641824,-500.0,0.00012393,2]
[355428386,1741134641835,-500.0,0.00012393,2]
[355428387,1741134641849,-500.0,0.00012393,2]
[355428388,1741134641862,-509.81328475,0.00012393,2]
[355428389,1741134641876,-500.0,0.00012393,2]
[355428390,1741134641891,-500.0,0.00012393,2]
[355428391,1741134641904,-500.0,0.00012393,2]
[355428392,1741134641915,-500.0,0.00012393,2]
[355428393,1741134641929,-500.0,0.00012393,2]
[355428394,1741134641942,-1043.91,0.00012393,2]
[355428395,1741134641956,-500.0,0.00012393,2]
[355428396,1741134641970,-500.0,0.00012393,2]
[355428397,1741134641983,-500.0,0.00012393,2]
[355428398,1741134641996,-500.0,0.00012393,2]
[355428399,1741134642009,-500.0,0.00012393,2]
[355428400,1741134642022,-951.15,0.00012393,2]
[355428401,1741134642035,-500.0,0.00012393,2]
[355428402,1741134642049,-500.0,0.00012393,2]
[355428403,1741134642062,-504.47703331,0.00012393,2]
[355428404,1741134642075,-500.0,0.00012393,2]
[355428405,1741134642087,-515.88017322,0.00012393,2]
[355428406,1741134642101,-500.0,0.00012393,2]
[355428407,1741134642114,-500.0,0.00012393,2]
[355428408,1741134642128,-500.0,0.00012393,2]
[355428409,1741134642141,-500.0,0.00012393,2]
[355428410,1741134642151,-500.0,0.00012393,2]
[355428411,1741134642165,-500.0,0.00012393,2]
[355428412,1741134642179,-500.0,0.00012393,2]
[355428413,1741134642193,-856.79,0.00012393,2]
[355428414,1741134642204,-500.0,0.00012393,2]
[355428415,1741134642215,-500.0,0.00012393,2]
[355428416,1741134642228,-500.0,0.00012393,2]
[355428417,1741134642243,-927.63,0.00012393,2]
[355428418,1741134642258,-500.0,0.00012393,2]
[355428419,1741134642270,-500.0,0.00012393,2]
[355428420,1741134642285,-500.0,0.00012393,2]
[355428421,1741134642295,-500.0,0.00012393,2]
[355428422,1741134642307,-500.0,0.00012393,2]
[355428423,1741134642319,-504.4058001,0.00012393,2]
[355428424,1741134642331,-1129.11,0.00012393,2]
[355428425,1741134642349,-500.0,0.00012393,2]
[355428426,1741134642360,-500.0,0.00012393,2]
[355428427,1741134642372,-361.93860409,0.00012393,2]
[355428428,1741134642383,-500.0,0.00012393,2]
[355428429,1741134642395,-635.13303819,0.00012393,2]
[355428430,1741134642408,-500.0,0.00012393,2]
[355428431,1741134642420,-504.15883572,0.00012393,2]
[355428432,1741134642432,-500.0,0.00012393,2]
[355428433,1741134642444,-500.0,0.00012393,2]
[355428434,1741134642455,-518.12,0.00012393,2]
[355428435,1741134642467,-500.0,0.00012393,2]
[355428436,1741134642478,-508.73827362,0.00012393,2]
[355428437,1741134642489,-760.59,0.00012393,2]
[355428438,1741134642501,-500.0,0.00012393,2]
[355428439,1741134642512,-1293.42,0.00012393,2]
[355428440,1741134642524,-500.0,0.00012393,2]
[355428441,1741134642535,-504.25302305,0.00012393,2]
[355428442,1741134642546,-516.27067949,0.00012393,2]
[355428443,1741134642557,-1295.68,0.00012393,2]
[355428444,1741134642569,-640.34,0.00012393,2]
[355428445,1741134642580,-508.95515883,0.00012393,2]
[355428446,1741134642592,-500.0,0.00012393,2]
[355428447,1741134642603,-500.0,0.00012393,2]
[355428448,1741134642615,-700.77,0.00012393,2]
[355428449,1741134642627,-500.0,0.00012393,2]
[355428450,1741134642639,-500.0,0.00012393,2]
[355428451,1741134642652,-151.0,0.00012393,2]
[355428452,1741134642666,-500.0,0.00012393,2]
[355428453,1741134642678,-500.0,0.00012393,2]
[355428454,1741134642691,-500.95420401,0.00012393,2]
[355428455,1741134642704,-500.0,0.00012393,2]
[355428456,1741134642715,-500.0,0.00012393,2]
[355428457,1741134642728,-500.0,0.00012393,2]
[355428458,1741134642740,-500.0,0.00012393,2]
[355428459,1741134642751,-500.0,0.00012393,2]